bitfinex-derivatives/quotes_SOLF0:USTF0_20240906
["timestamp","ask_amount","ask_price","bid_price","bid_amount"]
[1725588975365,1.4383,130.56,130.47,23.53]
[1725588975762,1.4383,130.56,130.49,23.53]
[1725588975964,3.89690301,130.58,130.53,3.8314]
[1725588976165,1.3074,130.59,130.53,3.8314]
[1725588976467,0.05421876,130.57,130.55,0.05509879]
[1725588976666,0.05170571,130.57,130.55,0.05150572]
[1725588979265,0.05170571,130.57,130.55,3.88230572]
[1725588980073,0.05170571,130.57,130.55,0.05150572]
[1725588981371,0.05170571,130.57,130.55,3.88230572]
[1725588981759,0.05170571,130.57,130.55,0.05150572]
[1725588983171,23.58170571,130.57,130.55,0.05150572]
[1725588983765,27.41220571,130.57,130.55,0.05150572]
[1725588984765,0.05170571,130.57,130.55,0.05150572]
[1725588986971,23.58170571,130.57,130.55,0.05150572]
[1725588987484,3.8306,130.56,130.55,0.05150572]
[1725588990777,0.05170571,130.57,130.55,0.05150572]
[1725588991370,0.05170571,130.57,130.55,3.88230572]
[1725588991675,0.05170571,130.57,130.55,0.05150572]
[1725588992280,0.05170571,130.57,130.56,3.8306]
[1725588997483,0.05170571,130.57,130.55,3.88230572]
[1725589001100,0.05170571,130.57,130.55,0.05150572]
[1725589002697,0.05170571,130.57,130.55,3.88220572]
[1725589004388,0.05170571,130.57,130.55,0.05150572]
[1725589004991,23.58170571,130.57,130.55,0.05150572]
[1725589005885,3.831,130.55,130.46,23.53]
[1725589006695,27.3607,130.56,130.46,23.53]
[1725589006990,27.3607,130.56,130.5,0.05262299]
[1725589006991,0.05543301,130.52,130.5,0.05262299]
[1725589007589,0.05543301,130.52,130.5,3.88472299]
[1725589010696,0.05543301,130.52,130.5,0.05262299]
[1725589010899,0.05543301,130.52,130.51,3.832]
[1725589012107,1.3358,130.58,130.55,3.8308]
[1725589012298,1.3358,130.58,130.52,23.53]
[1725589012498,1.3358,130.58,130.51,1.4191]
[1725589012697,1.3358,130.58,130.51,2.7317]
[1725589012998,3.89512022,130.59,130.53,0.05530313]
[1725589013301,0.05765711,130.56,130.53,23.58530313]
[1725589013501,0.05765711,130.56,130.55,3.8307]
[1725589016406,0.05765711,130.56,130.54,3.8311]
[1725589018103,3.79009855,130.66,130.53,0.05531599]
[1725589018304,1.3635,130.64,130.55,23.53]
[1725589018511,0.2817054,130.63,130.55,23.53]
[1725589019002,5.23205718,130.64,130.55,23.53]
[1725589019204,0.05268651,130.61,130.58,0.04853318]
[1725589019502,3.86855718,130.64,130.59,23.53]
[1725589019704,26.3343,130.69,130.59,23.53]
[1725589020004,3.828,130.65,130.6,3.8293]
[1725589020710,0.04934816,130.64,130.61,0.05356184]
[1725589020901,3.75208284,130.63,130.61,0.05356184]
[1725589022102,0.04934816,130.64,130.61,3.88266184]
[1725589022706,3.86942766,130.64,130.61,3.88266184]
[1725589022906,0.04934816,130.64,130.61,3.88266184]
[1725589023108,1.3635,130.69,130.62,23.53]
[1725589023309,2.6646,130.73,130.64,23.53]
[1725589023809,0.2814651,130.72,130.64,23.53]
[1725589024009,0.04874523,130.69,130.67,0.05791242]
[1725589025501,0.04874523,130.69,130.67,3.88501242]
[1725589026003,3.8249,130.76,130.7,3.8262]
[1725589026204,0.28140904,130.75,130.68,23.53]
[1725589026508,3.82904608,130.74,130.68,23.53]
[1725589026815,3.8248,130.76,130.7,3.8262]
[1725589027012,0.28138609,130.75,130.72,0.05001695]
[1725589027206,28.67289405,130.77,130.72,0.05001695]
[1725589027406,0.28140584,130.76,130.72,0.05001695]
[1725589028104,3.8252,130.75,130.72,0.05001695]
[1725589028300,0.28140584,130.74,130.72,0.05001695]
[1725589028506,3.8252,130.75,130.72,0.05001695]
[1725589030516,28.67289405,130.77,130.72,0.05001695]
[1725589030814,4.10610876,130.76,130.72,0.05001695]
[1725589031016,28.67289405,130.77,130.72,0.05001695]
[1725589031220,0.28138743,130.76,130.72,0.05001695]
[1725589032620,5.14289405,130.77,130.72,0.05001695]
[1725589033210,5.14289405,130.77,130.73,3.8253]
[1725589033918,8.96739405,130.77,130.72,3.87581695]
[1725589034114,0.28135127,130.76,130.72,0.05001695]
[1725589034818,8.96739405,130.77,130.72,0.05001695]
[1725589035015,0.28135144,130.76,130.72,0.05001695]
[1725589035222,4.06003291,130.76,130.72,0.05001695]
[1725589035415,0.28135144,130.75,130.72,3.87581695]
[1725589035610,0.28135383,130.74,130.72,3.87581695]
[1725589035815,3.7871015,130.74,130.72,0.05001695]
[1725589036009,0.28138353,130.73,130.72,0.05001695]
[1725589036219,3.8256,130.73,130.72,0.05001695]
[1725589036419,4.10698353,130.73,130.72,0.05001695]
[1725589037123,0.28138353,130.73,130.72,0.05001695]
[1725589037526,4.10698353,130.73,130.72,0.05001695]
[1725589037728,4.10702223,130.73,130.72,0.05001695]
[1725589037923,4.10702402,130.73,130.72,0.05001695]
[1725589038128,0.28142402,130.73,130.72,0.05001695]
[1725589038622,0.28142402,130.76,130.72,3.87591695]
[1725589039621,0.28135071,130.75,130.73,3.8256]
[1725589039823,9.07243016,130.77,130.73,3.8256]
[1725589040012,0.28134907,130.76,130.73,3.8256]
[1725589041220,4.0185066,130.76,130.73,3.8256]
[1725589041414,0.28134907,130.75,130.73,3.8256]
[1725589041719,3.73715753,130.76,130.73,3.8256]
[1725589041923,0.28135302,130.75,130.73,3.8256]
[1725589042120,3.73715753,130.76,130.73,3.8256]
[1725589042624,23.53,130.83,130.75,3.8248]
[1725589042927,0.28130527,130.82,130.78,0.05381679]
[1725589043125,0.28130527,130.82,130.75,23.53]
[1725589043126,4.0796,130.84,130.79,0.05548379]
[1725589043326,0.2812783,130.83,130.79,0.05548379]
[1725589043722,3.8232,130.82,130.79,0.05548379]
[1725589044923,3.8227,130.83,130.79,0.05548379]
[1725589045121,0.28128501,130.82,130.79,0.05548379]
[1725589045318,4.11237585,130.82,130.79,0.05548379]
[1725589045524,7.65409084,130.82,130.79,0.05548379]
[1725589045931,3.83109084,130.82,130.79,0.05548379]
[1725589046127,4.0796,130.84,130.79,0.05548379]
[1725589046429,23.81128863,130.83,130.79,0.05548379]
[1725589046628,0.28128863,130.82,130.79,0.05548379]
[1725589047335,7.92063874,130.84,130.79,0.05548379]
[1725589047527,0.2812864,130.83,130.79,0.05548379]
[1725589047726,3.8232,130.82,130.79,0.05548379]
[1725589047928,7.92063874,130.84,130.79,0.05548379]
[1725589048131,0.2812864,130.83,130.79,0.05548379]
[1725589048735,0.28128621,130.82,130.79,0.05548379]
[1725589048938,7.92063874,130.84,130.79,0.05548379]
[1725589049138,23.81128621,130.83,130.79,0.05548379]
[1725589049339,3.8235,130.81,130.79,0.05548379]
[1725589050138,3.8235,130.8,130.79,0.05548379]
[1725589051337,7.92063874,130.84,130.79,0.05548379]
[1725589051541,0.28128222,130.83,130.79,0.05548379]
[1725589051939,2.7432,130.84,130.79,0.05548379]
[1725589052136,6.47596904,130.84,130.79,0.05548379]
[1725589052441,6.47596904,130.84,130.79,3.87928379]
[1725589052642,10.29856904,130.84,130.79,3.87928379]
[1725589052940,2.7432,130.84,130.79,3.87928379]
[1725589053237,26.2732,130.84,130.79,0.05548379]
[1725589053444,30.09204807,130.84,130.79,0.05548379]
[1725589053838,0.28126565,130.83,130.79,0.05548379]
[1725589054037,3.8232,130.82,130.79,0.05548379]
[1725589055245,3.8233,130.81,130.79,0.05548379]
[1725589060355,3.8235,130.8,130.79,0.05548379]
[1725589061842,3.8233,130.81,130.79,0.05548379]
[1725589063851,3.8235,130.8,130.79,0.05548379]
[1725589065356,23.53,130.82,130.73,3.8255]
[1725589065559,1.3375,130.79,130.73,3.8255]
[1725589065954,3.8243,130.78,130.73,3.8255]
[1725589066350,0.05548379,130.77,130.74,0.0511886]
[1725589066552,3.83070823,130.76,130.74,0.0511886]
[1725589066955,0.05548379,130.77,130.74,0.0511886]
[1725589067464,3.84966251,130.77,130.74,0.0511886]
[1725589068359,3.8249,130.76,130.74,0.0511886]
[1725589070259,3.84966251,130.77,130.74,0.0511886]
[1725589070763,3.8248,130.76,130.74,0.0511886]
[1725589072358,0.05548379,130.77,130.74,0.0511886]
[1725589073060,0.05548379,130.77,130.75,3.8248]
[1725589074358,3.81646179,130.77,130.74,3.8764886]
[1725589074662,0.05548379,130.77,130.74,3.8764886]
[1725589075460,3.93622841,130.77,130.74,3.8764886]
[1725589076567,0.05548379,130.77,130.76,3.8247]
[1725589076772,1.4312,130.82,130.75,23.53]
[1725589077070,1.4312,130.82,130.77,23.53]
[1725589077268,1.4312,130.82,130.77,3.8243]
[1725589077972,1.4312,130.82,130.78,0.05707709]
[1725589078471,3.8233,130.81,130.78,0.05707709]
[1725589078974,5.2542,130.82,130.78,0.05707709]
[1725589080263,5.2542,130.82,130.78,3.88117709]
[1725589080659,6.6034,130.83,130.78,3.88117709]
[1725589081069,2.7806,130.83,130.78,0.05707709]
[1725589081269,3.8238,130.79,130.78,0.05707709]
[1725589082763,23.53,130.8,130.69,23.53]
[1725589082965,1.389,130.82,130.65,1.4164]
[1725589082966,23.53,130.78,130.67,27.34283678]
[1725589083161,1.66210143,130.77,130.67,23.53]
[1725589083370,25.20030143,130.76,130.66,2.7686]
[1725589083576,24.919,130.76,130.66,2.7686]
[1725589083761,0.28138175,130.75,130.66,2.7686]
[1725589083963,0.05479098,130.72,130.7,0.0517792]
[1725589084166,23.58479098,130.72,130.7,0.0517792]
[1725589084670,3.8262,130.71,130.7,0.0517792]
[1725589085174,4.10766378,130.71,130.7,0.0517792]
[1725589086173,3.8262,130.71,130.7,0.0517792]
[1725589086782,3.88069098,130.72,130.7,0.0517792]
[1725589088172,3.8262,130.71,130.7,0.0517792]
[1725589089280,3.88069098,130.72,130.7,0.0517792]
[1725589092376,0.05479098,130.72,130.7,0.0517792]
[1725589094377,3.88069098,130.72,130.7,0.0517792]
[1725589097482,0.05479098,130.72,130.7,0.0517792]
[1725589101283,0.05479098,130.72,130.7,3.8781792]
[1725589102187,0.05479098,130.72,130.7,0.0517792]
[1725589102986,23.58479098,130.72,130.7,0.0517792]
[1725589103191,23.81140072,130.71,130.62,2.7756]
[1725589103489,1.3363,130.7,130.62,2.7756]
[1725589103788,1.3363,130.7,130.63,3.8284]
[1725589103789,3.8271,130.68,130.63,3.8284]
[1725589103985,1.3363,130.7,130.63,3.8284]
[1725589104377,0.05764312,130.68,130.65,0.05597949]
[1725589104579,3.83680944,130.68,130.65,0.05597949]
[1725589105384,7.66390944,130.68,130.65,0.05597949]
[1725589105794,3.83680944,130.68,130.65,0.05597949]
[1725589106486,3.8275,130.67,130.65,0.05597949]
[1725589110995,7.66410944,130.68,130.65,0.05597949]
[1725589111381,3.83680944,130.68,130.65,0.05597949]
[1725589112290,3.8274,130.67,130.65,0.05597949]
[1725589112785,3.83680944,130.68,130.65,0.05597949]
[1725589112986,3.8276,130.66,130.65,0.05597949]
[1725589113985,3.8274,130.67,130.65,0.05597949]
[1725589114487,7.66410944,130.68,130.65,0.05597949]
[1725589115082,3.8275,130.67,130.65,0.05597949]
[1725589116598,7.66390944,130.68,130.65,0.05597949]
[1725589116803,3.83680944,130.68,130.65,0.05597949]
[1725589118394,0.05764312,130.68,130.65,0.05597949]
[1725589118588,0.05764312,130.68,130.65,23.58597949]
[1725589118795,0.05764312,130.68,130.67,3.8273]
[1725589119492,0.05764312,130.68,130.66,3.8274]
[1725589121401,0.05764312,130.68,130.67,3.8273]
[1725589122694,0.05764312,130.68,130.66,3.8275]
[1725589124404,0.05764312,130.68,130.67,3.8273]
[1725589128215,0.05764312,130.68,130.66,3.8276]
[1725589129006,0.05764312,130.68,130.65,6.58557949]
[1725589129510,0.05764312,130.68,130.65,3.88387949]
[1725589136422,0.05764312,130.68,130.67,3.8273]
[1725589139924,0.05764312,130.68,130.66,3.8276]
[1725589140820,0.05764312,130.68,130.65,0.05597949]
[1725589142033,3.88474312,130.68,130.65,0.05597949]
[1725589144829,0.05764312,130.68,130.65,0.05597949]
[1725589145029,0.05764312,130.68,130.66,9.42]
[1725589145233,0.05764312,130.68,130.67,9.42]
[1725589145428,0.05764312,130.68,130.67,13.2473]
[1725589146232,0.05764312,130.68,130.67,3.8273]
[1725589147526,12.1698,130.75,130.7,3.8264]
[1725589147922,15.9948,130.75,130.7,3.8264]
[1725589148727,0.05121317,130.74,130.71,0.04975766]
[1725589151633,0.05121317,130.74,130.71,3.87585766]
[1725589152231,0.05121317,130.74,130.72,3.8258]
[1725589153032,3.97026421,130.74,130.72,3.8258]
[1725589154236,0.05121317,130.74,130.73,3.8256]
[1725589154431,2.7505,130.82,130.72,23.52]
[1725589154636,0.28129101,130.81,130.74,23.52]
[1725589154831,0.28129101,130.81,130.74,27.37207507]
[1725589154832,4.15747743,130.81,130.74,27.37207507]
[1725589155034,1.3845,130.84,130.76,23.52]
[1725589155232,0.28127271,130.83,130.76,23.52]
[1725589155431,1.3845,130.84,130.78,0.04932947]
[1725589155728,3.81877844,130.83,130.78,0.04932947]
[1725589155933,1.3845,130.84,130.8,3.8233]
[1725589156143,1.3845,130.84,130.81,0.04911476]
[1725589156737,23.52,130.82,130.81,0.04911476]
[1725589157139,3.8234,130.81,130.75,3.825]
[1725589157332,3.8234,130.81,130.72,30.18820828]
[1725589157539,3.89417425,130.82,130.74,23.52]
[1725589157744,3.89417425,130.82,130.78,3.8239]
[1725589158136,3.89417425,130.82,130.79,0.05270807]
[1725589158340,0.04911476,130.81,130.79,3.87640807]
[1725589158539,0.04911476,130.81,130.79,0.05270807]
[1725589159437,0.04911476,130.81,130.79,3.87650807]
[1725589159641,0.04911476,130.81,130.79,0.05270807]
[1725589162446,24.9529,130.9,130.79,23.57270807]
[1725589162649,0.28113843,130.89,130.8,1.3154]
[1725589163345,3.8215,130.87,130.82,3.8227]
[1725589163544,3.8215,130.87,130.83,0.05278324]
[1725589163943,3.8219,130.86,130.83,0.05278324]
[1725589165455,2.8745,130.9,130.83,0.05278324]
[1725589165643,23.80116584,130.89,130.83,0.05278324]
[1725589165843,4.10266584,130.88,130.83,0.05278324]
[1725589166051,0.28116584,130.87,130.83,0.05278324]
[1725589166443,23.52,130.89,130.83,0.05278324]
[1725589166652,0.28114321,130.88,130.83,0.05278324]
[1725589167345,3.8216,130.87,130.83,0.05278324]
[1725589168758,23.52,130.89,130.83,0.05278324]
[1725589168944,0.2811431,130.88,130.83,0.05278324]
[1725589169347,4.1025431,130.88,130.83,0.05278324]
[1725589169547,3.8214,130.88,130.83,0.05278324]
[1725589169950,23.52,130.89,130.83,0.05278324]
[1725589170147,23.52,130.87,130.83,0.05278324]
[1725589170855,3.8223,130.85,130.83,0.05278324]
[1725589171057,23.52,130.87,130.83,0.05278324]
[1725589171259,23.52,130.85,130.83,0.05278324]
[1725589171649,3.8224,130.84,130.83,0.05278324]
[1725589171954,3.90590419,130.84,130.83,0.05278324]
[1725589172156,27.3421,130.85,130.83,0.05278324]
[1725589172551,23.52,130.85,130.83,0.05278324]
[1725589172757,5.1824,130.84,130.83,0.05278324]
[1725589173065,8.99576172,130.84,130.83,0.05278324]
[1725589177061,3.8238,130.79,130.76,93.1541183]
[1725589177255,23.52,130.81,130.71,23.52]
[1725589177456,23.52,130.81,130.72,4.2175]
[1725589178060,0.05082395,130.78,130.75,3.87684732]
[1725589184650,0.05082395,130.78,130.75,0.05184732]
[1725589184857,0.05082395,130.78,130.73,19.75864272]
[1725589185859,0.05082395,130.78,130.74,0.04902482]
[1725589186059,0.05082395,130.78,130.75,3.8248]
[1725589186557,0.05082395,130.78,130.76,3.8246]
[1725589186760,0.05082395,130.78,130.74,23.56902482]
[1725589188061,0.05082395,130.78,130.77,3.8244]
[1725589190165,0.05082395,130.78,130.76,3.8246]
[1725589190664,0.05082395,130.78,130.74,0.04902482]
[1725589192466,0.05082395,130.78,130.75,3.8249]
[1725589193162,3.87502395,130.78,130.74,3.87402482]
[1725589193666,0.05082395,130.78,130.74,3.87402482]
[1725589194464,0.05082395,130.78,130.74,23.56902482]
[1725589195170,0.05082395,130.78,130.76,3.8247]
[1725589196768,0.05082395,130.78,130.74,0.04902482]
[1725589197362,3.87492395,130.78,130.74,3.87412482]
[1725589198164,0.05082395,130.78,130.75,3.825]
[1725589200266,0.05082395,130.78,130.76,23.52]
[1725589200672,3.89191959,130.82,130.78,23.52]
[1725589200969,1.36,130.84,130.78,27.26577654]
[1725589201271,5.26377937,130.84,130.78,23.52]
[1725589201463,1.36,130.84,130.78,23.52]
[1725589201665,0.05054867,130.82,130.8,0.05095769]
[1725589201861,3.86054857,130.81,130.8,0.05095769]
[1725589202067,7.68374857,130.81,130.8,0.05095769]
[1725589202268,0.05054867,130.82,130.8,0.05095769]
[1725589202466,3.80310813,130.82,130.8,0.05095769]
[1725589202766,0.05054867,130.82,130.8,0.05095769]
[1725589203170,3.78206932,130.82,130.8,0.05095769]
[1725589203872,7.60516932,130.82,130.8,0.05095769]
[1725589204684,3.78206932,130.82,130.72,2.7829]
[1725589204974,23.52,130.8,130.72,2.7829]
[1725589205370,3.8244,130.78,130.73,3.8253]
[1725589205571,3.75945421,130.77,130.73,3.8253]
[1725589205779,0.05736327,130.76,130.74,0.05044482]
[1725589209382,3.825,130.75,130.74,0.05044482]
[1725589210372,3.825,130.75,130.67,24.8434]
[1725589210373,3.8263,130.71,130.67,1.3234]
[1725589210583,3.8263,130.71,130.66,1.4112]
[1725589210780,23.52,130.77,130.67,3.8273]
[1725589210981,0.28138729,130.76,130.67,3.8273]
[1725589211583,0.05282495,130.73,130.7,0.05377046]
[1725589212179,3.87862495,130.73,130.7,0.05377046]
[1725589212376,0.05282495,130.73,130.7,0.05377046]
[1725589213385,3.87862495,130.73,130.7,0.05377046]
[1725589213586,0.05282495,130.73,130.7,0.05377046]
[1725589214292,3.826,130.72,130.7,0.05377046]
[1725589214587,3.73419229,130.71,130.7,0.05377046]
[1725589214886,0.05282495,130.73,130.7,0.05377046]
[1725589215277,3.87862495,130.73,130.7,0.05377046]
[1725589215691,3.8262,130.71,130.7,0.05377046]
[1725589215983,7.65130432,130.71,130.7,0.05377046]
[1725589217589,3.82510432,130.71,130.7,0.05377046]
[1725589217785,5.1562,130.72,130.7,0.05377046]
[1725589218098,1.3303,130.72,130.7,0.05377046]
[1725589218979,1.3303,130.72,130.65,3.8279]
[1725589219384,3.82807715,130.71,130.64,23.52]
[1725589219594,3.82807715,130.71,130.66,23.52]
[1725589219792,1.3542,130.74,130.66,23.52]
[1725589219998,0.05532662,130.71,130.69,3.87884771]
[1725589221792,0.05532662,130.71,130.7,3.8265]
[1725589225089,0.05532662,130.71,130.69,3.87904771]
[1725589225289,0.05532662,130.71,130.69,0.05234771]
[1725589226289,0.05532662,130.71,130.7,3.8265]
[1725589226486,0.05532662,130.71,130.7,27.3465]
[1725589226795,2.6846,130.77,130.7,23.52]
[1725589227096,3.85395708,130.78,130.72,23.52]
[1725589227295,2.6958,130.8,130.72,23.52]
[1725589227598,6.55850752,130.8,130.72,23.52]
[1725589227801,0.0584342,130.77,130.75,0.0566537]
[1725589233698,3.8828342,130.77,130.75,0.0566537]
[1725589233899,0.0584342,130.77,130.75,0.0566537]
[1725589234596,3.8247,130.76,130.75,0.0566537]
[1725589235405,3.8251,130.75,130.68,28.82389113]
[1725589236201,6.55850752,130.8,130.71,23.52]
[1725589236504,0.05218272,130.77,130.74,0.05124508]
[1725589237203,3.81785141,130.77,130.74,0.05124508]
[1725589238297,7.64225141,130.77,130.74,0.05124508]
[1725589238698,3.81785141,130.77,130.74,0.05124508]
[1725589239603,7.64255141,130.77,130.74,0.05124508]
[1725589240405,0.05218272,130.77,130.74,23.57124508]
[1725589240704,3.90511358,130.77,130.74,23.57124508]
[1725589240905,3.90511358,130.77,130.74,0.05124508]
[1725589241313,7.72981358,130.77,130.74,0.05124508]
[1725589242402,3.90511358,130.77,130.74,3.87654508]
[1725589243208,0.05218272,130.77,130.74,3.87654508]
[1725589243810,0.05218272,130.77,130.75,3.825]
[1725589244804,0.05218272,130.77,130.76,3.8247]
[1725589245002,0.05218272,130.77,130.76,27.3447]
[1725589247412,0.05218272,130.77,130.76,3.8247]
[1725589248120,3.78757712,130.82,130.78,3.824]
[1725589248514,3.92001284,130.81,130.78,3.824]
[1725589248813,3.8228,130.83,130.79,3.8237]
[1725589249110,0.05362578,130.82,130.8,0.0541223]
[1725589253116,0.05362578,130.82,130.8,3.8775223]
[1725589262016,0.05362578,130.82,130.81,3.8232]
[1725589262219,572.98502426,130.94,130.8,23.5741223]
[1725589262220,3.83765657,130.88,130.8,27.32840975]
[1725589262519,4.1481,130.9,130.84,23.52]
[1725589262716,0.28112249,130.89,130.84,23.52]
[1725589262920,3.77379123,130.9,130.85,27.25287153]
[1725589263126,1.335,130.93,130.88,3.8211]
[1725589263127,3.82,130.93,130.88,3.8211]
[1725589263322,0.28106628,130.92,130.91,23.52]
[1725589263519,3.79138288,130.95,130.93,3.8196]
[1725589263717,6.6567,130.99,130.94,23.52]
[1725589263914,0.28095836,130.98,130.89,1.4333]
[1725589264120,1.62835836,130.98,130.91,3.8203]
[1725589264327,0.28095836,130.97,130.91,23.52]
[1725589264626,0.04912648,130.95,130.93,0.0502423]
[1725589265922,3.8194,130.94,130.93,0.0502423]
[1725589266121,7.65097859,130.94,130.93,0.0502423]
[1725589267723,7.65097859,130.94,130.86,1.3878]
[1725589267724,27.35157859,130.94,130.86,23.52]
[1725589267926,2.7514,130.93,130.86,23.52]
[1725589268325,3.8204,130.91,130.86,23.52]
[1725589268522,2.7514,130.93,130.86,23.52]
[1725589268824,0.05863217,130.91,130.88,23.57373027]
[1725589269823,0.05863217,130.91,130.89,23.52]
[1725589270025,0.28095431,130.96,130.89,24.8921]
[1725589270217,4.09985431,130.96,130.91,23.52]
[1725589270419,3.8189,130.96,130.91,23.52]
[1725589270920,0.04350435,130.95,130.92,0.05052456]
[1725589271115,24.92350435,130.95,130.92,0.05052456]
[1725589271322,1.40350435,130.95,130.92,0.05052456]
[1725589271635,3.8197,130.94,130.92,0.05052456]
[1725589272726,1.40350435,130.95,130.86,1.3721]
[1725589272924,1.40350435,130.95,130.83,3.89103244]
[1725589272925,23.52,130.92,130.83,3.89103244]
[1725589273119,23.52,130.92,130.82,23.52]
[1725589273524,3.8209,130.89,130.83,3.8224]
[1725589273724,3.89000649,130.88,130.82,23.52]
[1725589273925,0.05089808,130.87,130.85,0.05458716]
[1725589274125,0.05212908,130.87,130.85,0.05458716]
[1725589277331,3.87372908,130.87,130.85,0.05458716]
[1725589277533,0.05212908,130.87,130.85,0.05458716]
[1725589278137,3.8218,130.86,130.85,0.05458716]
[1725589281131,3.87362908,130.87,130.85,0.05458716]
[1725589281329,0.05212908,130.87,130.85,0.05458716]
[1725589282429,3.8218,130.86,130.85,0.05458716]
[1725589283640,0.05212908,130.87,130.85,0.05458716]
[1725589286439,23.52,130.86,130.75,27.27666693]
[1725589286839,1.4242,130.85,130.75,27.27666693]
[1725589287231,1.4422,130.84,130.75,27.27666693]
[1725589287435,0.05693354,130.81,130.79,0.04900918]
[1725589290545,0.05693354,130.81,130.79,3.87270918]
[1725589292043,0.05693354,130.81,130.8,3.8235]
[1725589298443,0.05693354,130.81,130.79,0.04900918]
[1725589302444,23.57693354,130.81,130.79,0.04900918]
[1725589302745,23.52,130.81,130.71,31.44566819]
[1725589302943,3.8241,130.79,130.71,31.44566819]
[1725589303145,23.52,130.81,130.73,23.52]
[1725589303540,3.8237,130.8,130.76,0.05303542]
[1725589303744,0.05810286,130.78,130.76,0.05303542]
[1725589311239,0.05810286,130.78,130.76,3.87773542]
[1725589312350,0.05810286,130.78,130.77,3.8244]
[1725589312547,0.05810286,130.78,130.76,0.05303542]
[1725589312753,3.8244,130.77,130.76,0.05303542]
[1725589313049,3.8244,130.77,130.68,23.52]
[1725589313050,1.3763,130.77,130.68,23.52]
[1725589313856,0.05411927,130.74,130.71,0.05182129]
[1725589314055,9.46411927,130.74,130.71,0.05182129]
[1725589314545,3.8256,130.73,130.71,0.05182129]
[1725589314744,13.21027838,130.74,130.71,0.05182129]
[1725589315459,3.80027838,130.74,130.71,0.05182129]
[1725589317148,0.05411927,130.74,130.71,0.05182129]
[1725589317856,0.05411927,130.74,130.72,3.8257]
[1725589318157,0.05411927,130.74,130.71,0.05182129]
[1725589319057,0.05411927,130.74,130.71,24.91672129]
[1725589319854,0.05411927,130.74,130.73,3.8256]
[1725589320057,0.05411927,130.74,130.71,24.91672129]
[1725589320458,0.05411927,130.74,130.73,3.8256]
[1725589323462,1.3364,130.8,130.78,3.8241]
[1725589324059,1.3364,130.8,130.77,3.8243]
[1725589324752,1.39420131,130.8,130.77,3.88299577]
[1725589328964,5.21780131,130.8,130.77,0.05869577]
[1725589329164,1.39420131,130.8,130.77,0.05869577]
[1725589329360,2.78230131,130.8,130.77,0.05869577]
[1725589330463,3.8239,130.79,130.77,0.05869577]
[1725589330971,6.60590131,130.8,130.77,0.05869577]
[1725589332572,2.78230131,130.8,130.77,3.88309577]
[1725589332769,0.05780131,130.8,130.77,0.05869577]
[1725589335368,0.05780131,130.8,130.78,3.8241]
[1725589335772,0.05780131,130.8,130.77,0.05869577]
[1725589335977,9.4,130.79,130.77,0.05869577]
[1725589337872,0.05780131,130.8,130.77,0.05869577]
[1725589338069,1.4426,130.78,130.77,0.05869577]
[1725589338476,5.2667,130.78,130.77,0.05869577]
[1725589339076,0.05780131,130.8,130.77,0.05869577]
[1725589340367,0.05780131,130.8,130.78,3.8239]
[1725589340675,0.05780131,130.8,130.77,0.05869577]
[1725589340877,3.88140131,130.8,130.77,0.05869577]
[1725589341076,0.05780131,130.8,130.77,0.05869577]
[1725589341778,0.05780131,130.8,130.77,3.88309577]
[1725589341965,0.05780131,130.8,130.77,0.05869577]
[1725589342171,0.05780131,130.8,130.78,3.8239]
[1725589342876,0.05780131,130.8,130.77,0.05869577]
[1725589343078,0.05780131,130.8,130.77,3.88289577]
[1725589345475,0.05780131,130.8,130.77,0.05869577]
[1725589347575,3.88140131,130.8,130.77,0.05869577]
[1725589347883,23.56780131,130.8,130.77,0.05869577]
[1725589348082,3.8241,130.78,130.77,0.05869577]
[1725589348279,23.51,130.78,130.71,3.8261]
[1725589348881,3.8249,130.76,130.71,3.8261]
[1725589349085,7.70266946,130.76,130.71,3.8261]
[1725589349279,7.70266946,130.76,130.72,0.05235814]
[1725589349482,0.05862285,130.75,130.72,0.05235814]
[1725589349881,3.88372285,130.75,130.72,0.05235814]
[1725589353585,3.8256,130.73,130.61,1.4266]
[1725589353793,3.8256,130.73,130.65,24.8774]
[1725589354688,0.05875363,130.7,130.68,3.88335039]
[1725589355285,0.05875363,130.7,130.68,0.05645039]
[1725589357393,3.8268,130.69,130.68,0.05645039]
[1725589357597,23.51,130.69,130.61,1.4387]
[1725589358097,3.8274,130.67,130.62,3.8285]
[1725589358695,0.05459628,130.66,130.63,0.05236726]
[1725589360594,3.8282,130.65,130.63,0.05236726]
[1725589361596,3.88229628,130.66,130.63,0.05236726]
[1725589361799,0.05459628,130.66,130.63,0.05236726]